fUSD/lending_fUSD_20241122
["ID","MTS","AMOUNT","RATE_DAILY","PERIOD"]
[342982966,1732248638027,-52660.89357141,0.000666,20]
[342982967,1732248638070,-10576.68958452,0.000666,20]
[342982972,1732248639505,-215.62,0.00064767,2]
[342982973,1732248639515,-374.21505545,0.000666,20]
[342982974,1732248639668,-534.1,0.000666,20]
[342982975,1732248639773,-322277.92650767,0.000666,20]
[342982976,1732248639828,-1345.08500001,0.000666,20]
[342982977,1732248639842,-497.1186714,0.000666,20]
[342982978,1732248639855,-615.96435014,0.000666,20]
[342982982,1732248642624,-2994.69777155,0.000666,20]
[342982983,1732248642665,-2873.51361833,0.000666,20]
[342982984,1732248642679,-10502.64900009,0.000666,20]
[342982985,1732248642696,-5117.53423682,0.000666,20]
[342982986,1732248642712,-16054.75218346,0.000666,20]
[342982987,1732248642774,-1689.49327422,0.000666,20]
[342982988,1732248642792,-7173.403,0.000666,20]
[342982989,1732248642842,-574.93183816,0.000666,20]
[342982990,1732248642859,-788.99095259,0.000666,20]
[342982991,1732248642883,-3233.08538792,0.000666,20]
[342982992,1732248642897,-2805.09763691,0.000666,20]
[342982993,1732248642912,-6020.85811731,0.000666,20]
[342982994,1732248642923,-462.72294889,0.000666,20]
[342982995,1732248642938,-199215.45000001,0.000666,20]
[342983003,1732248645528,-303.63631753,0.00041973,10]
[342983004,1732248645538,-21373.4664304,0.000666,20]
[342983005,1732248645586,-873.30640232,0.000666,20]
[342983006,1732248645641,-2192.1224385,0.000666,20]
[342983007,1732248645655,-2905.5331124,0.000666,20]
[342983008,1732248645670,-3329.47780248,0.000666,20]
[342983009,1732248645805,-43468.14401464,0.000666,20]
[342983010,1732248645817,-26052.94887479,0.000666,20]
[342983011,1732248645830,-5250.44934208,0.000666,20]
[342983012,1732248645843,-439.72724883,0.000666,20]
[342983021,1732248963777,-167.03,0.00015342,2]
[342983022,1732248963803,-167.03,0.00045753,2]
[342983023,1732248963835,-342.96,0.0006,120]
[342983024,1732248963862,-150.0,0.00060138,30]
[342983025,1732248963890,-3825.52021353,0.00060138,7]
[342983026,1732248963923,-150.0,0.0006019,30]
[342983027,1732248963953,-150.0,0.00060466,30]
[342983028,1732248963982,-150.0,0.00060601,30]
[342983029,1732248964011,-150.0,0.00060727,30]
[342983030,1732248964037,-150.0,0.0006077,30]
[342983031,1732248964064,-150.0,0.00060935,30]
[342983032,1732248964096,-150.0,0.0006099,30]
[342983033,1732248964123,-150.0,0.00060997,30]
[342983034,1732248964153,-632.0,0.00061615,120]
[342983035,1732248964183,-493.390284,0.00064291,30]
[342983036,1732248964209,-293.465,0.00064615,120]
[342983037,1732248964236,-157.564,0.0006564,120]
[342983038,1732248964265,-500.0,0.00065722,2]
[342983039,1732248964293,-23900.0,0.00066095,2]
[342983040,1732248964320,-7191.25899785,0.0006649,120]
[342983041,1732248964347,-379.76106984,0.00066599,120]
[342983042,1732248964376,-10600.02043478,0.000666,20]
[342983043,1732248964807,-50000.0,0.000666,20]
[342983044,1732248966738,-527.51796,0.00066599,120]
[342983045,1732248966766,-49472.48204,0.000666,20]
[342983046,1732248967933,-50000.0,0.000666,20]
[342983047,1732248969632,-50000.0,0.000666,20]
[342983048,1732249402257,-247.95,0.00019178,2]
[342983049,1732249402283,-3500.0,0.000385,120]
[342983050,1732249402313,-999.82457977,0.00045653,2]
[342983051,1732249402339,-228.7580365,0.0005,120]
[342983052,1732249402369,-250.0,0.00066046,120]
[342983053,1732249402396,-23900.0,0.00066054,2]
[342983054,1732249402425,-500.0,0.00066093,2]
[342983055,1732249402453,-162.69,0.00066376,120]
[342983056,1732249402481,-1000.0,0.00066414,120]
[342983057,1732249402506,-250.0,0.00066414,120]
[342983058,1732249402531,-439.5983,0.00066599,120]
[342983059,1732249402558,-18521.17908373,0.000666,20]
[342983060,1732249403683,-50000.0,0.000666,20]
[342983061,1732249508047,4245.39932287,0.0001,2]
[342983062,1732249519263,1153.84295324,9e-05,2]
[342983064,1732249554594,858.61421628,6.94e-05,2]
[342983065,1732249630890,200.0,9.6e-05,2]
[342983068,1732249714176,-2453.25036542,0.0001305,2]
[342983069,1732249714200,-300.0,0.000137,2]
[342983070,1732249714226,-269.411453,0.00014,2]
[342983071,1732249714252,-400.0,0.000178,2]
[342983072,1732249714278,-223.10877437,0.000199,3]
[342983073,1732249730687,-500.0,0.000219,2]
[342983074,1732249730711,-2776.12866755,0.00023822,2]
[342983075,1732249730735,-912.01149388,0.00023922,2]
[342983076,1732249730757,-275.08924578,0.00025,2]
[342983105,1732249747115,-6871.64390235,0.00025,2]
[342983106,1732249747138,-2022.194746,0.00025,7]
[342983107,1732249747160,-200.69420632,0.00026,2]
[342983108,1732249747182,-5669.79820704,0.0003,15]
[342983109,1732249747202,-161.37,0.00041096,2]
[342983110,1732249747223,-14088.08093829,0.00042,30]
[342983127,1732249831760,-580.3469414,0.00037927,120]
[342983128,1732249831772,-499.8230586,0.00037927,120]
[342983129,1732249831783,-538.27612248,0.00037927,4]
[342983130,1732249831794,-1874.32402,0.00037927,4]
[342983131,1732249831806,-1616.18669621,0.00037927,4]
[342983132,1732249831823,-8038.54273932,0.00037927,4]
[342983133,1732249831832,-150.0,0.00041999,4]
[342983134,1732249831842,-50395.96872796,0.00042,30]
[342983135,1732249831852,-32466.95807613,0.00045,120]
[342983136,1732249831862,-161.37,0.00054795,120]
[342983137,1732249831875,-8826.5965897,0.000575,120]
[342983138,1732249831885,-17035.61887852,0.0005856,120]
[342983139,1732249831896,-1000.0,0.00058798,120]
[342983140,1732249831906,-8530.75977936,0.0005885,120]
[342983141,1732249831916,-350.55690341,0.0006,120]
[342983142,1732249831927,-204.83,0.00060014,2]
[342983143,1732249831938,-495.22,0.0006089,30]
[342983144,1732249831949,-18315.39573824,0.000609,120]
[342983145,1732249831960,-415.90400939,0.000609,15]
[342983146,1732249831970,-178.45586683,0.00061,120]
[342983147,1732249831980,-530.51802939,0.00061,120]
[342983148,1732249831990,-16367.3659765,0.00061,60]
[342983149,1732249832000,-200.0,0.00062,120]
[342983150,1732249832010,-204.83,0.00062278,2]
[342983151,1732249832022,-415.90400931,0.00064122,15]
[342983152,1732249832032,-204.83,0.00064542,2]
[342983153,1732249832042,-157796.35379803,0.00065,60]
[342983154,1732249832051,-9161.0,0.00065223,30]
[342983155,1732249832062,-1000.0,0.00066148,120]
[342983156,1732249832071,-3663322.97122003,0.000666,20]
[342983157,1732249832083,-775150.1828843,0.000666,20]
[342983158,1732249832175,-28045.09479563,0.000666,20]
[342983159,1732249832187,-137308.94754364,0.000666,20]
[342983160,1732249832199,-540.0,0.000666,20]
[342983161,1732249832214,-535.47,0.000666,20]
[342983162,1732249832225,-3179.51067861,0.000666,20]
[342983163,1732249832240,-7544.81330379,0.000666,20]
[342983174,1732249837781,-2537.92305797,0.000666,20]
[342983175,1732249837855,-2471.43711036,0.000666,20]
[342983176,1732249837870,-3962.55749776,0.000666,20]
[342983177,1732249837889,-3110.01716113,0.000666,20]
[342983178,1732249837903,-2335.4781336,0.000666,20]
[342983179,1732249837917,-2048.003565,0.000666,20]
[342983180,1732249837932,-3632.29598432,0.000666,20]
[342983181,1732249837947,-3158.92017496,0.000666,20]
[342983182,1732249838013,-622.42455545,0.000666,20]
[342983183,1732249838026,-636.63706087,0.000666,20]
[342983184,1732249838037,-2770.11383379,0.000666,20]
[342983185,1732249838049,-3408.6838881,0.000666,20]
[342983186,1732249838060,-162995.25410478,0.000666,20]
[342983187,1732249838133,-2617.19999987,0.000666,20]
[342983188,1732249838191,-159416.99891704,0.000666,20]
[342983190,1732249838203,-2641.07216819,0.000666,20]
[342983193,1732249838215,-9006.70036266,0.000666,20]
[342983199,1732249842217,-2690.4085977,0.000666,20]
[342983200,1732249842229,-867.15,0.000666,20]
[342983201,1732249842243,-1050.00106608,0.000666,20]
[342983202,1732249842446,-9489.20701298,0.000666,20]
[342983230,1732249842837,-170.68399762,0.000666,20]
[342983236,1732249843356,-12.52619243,0.000666,20]
[342983237,1732249843367,-2762.23364284,0.000666,20]
[342983239,1732249843380,-395.57000454,0.000666,20]
[342983241,1732249843392,-3221.42033944,0.000666,20]
[342983243,1732249843404,-6048.10095087,0.000666,20]
[342983246,1732249843416,-8432.65797182,0.000666,20]
[342983248,1732249843428,-290557.0209737,0.000666,20]
[342983250,1732249843443,-101277.35358703,0.000666,20]
[342983253,1732249843455,-3221.18182777,0.000666,20]
[342983276,1732249845719,-1180.0,0.00060184,60]
[342983277,1732249845730,-1180.0,0.00060804,60]
[342983278,1732249845739,-1180.0,0.00061425,60]
[342983279,1732249845748,-1180.0,0.00062045,60]
[342983280,1732249845758,-1180.0,0.00062666,60]
[342983281,1732249845767,-1180.0,0.00063286,60]
[342983282,1732249845777,-1180.0,0.00063906,60]
[342983283,1732249845787,-36306.69051731,0.000666,20]
[342983284,1732249845799,-39285.8467825,0.000666,20]
[342983285,1732249845814,-1194.39473821,0.000666,20]
[342983286,1732249845825,-1206.24697157,0.000666,20]
[342983287,1732249845836,-1417.47412833,0.000666,20]
[342983288,1732249845869,-1522.36017713,0.000666,20]
[342983289,1732249845894,-851.93599999,0.000666,20]
[342983290,1732249845905,-5633.91404603,0.000666,20]
[342983291,1732249845955,-986.7948274,0.000666,20]
[342983292,1732249845966,-29585.726744,0.000666,20]
[342983293,1732249846018,-3104.89849298,0.000666,20]
[342983294,1732249846078,-3419.19999999,0.000666,20]
[342983318,1732250946145,-2116.98864961,0.000309,2]
[342983319,1732250946167,-250.0,0.00031,2]
[342983320,1732250946189,-570.0,0.00031,2]
[342983321,1732250946210,-254.66282503,0.0003151,30]
[342983322,1732250946233,-300.0,0.00033,2]
[342983323,1732250946259,-1482.458961,0.000428,30]
[342983324,1732250946280,-2136.97683436,0.00058381,7]
[342983325,1732250949104,-736.15724314,0.00058381,7]
[342983326,1732250949124,-466.09,0.000584,60]
[342983327,1732250949146,-138.7043141,0.000584,60]
[342983328,1732250953143,-307.8156859,0.000584,60]
[342983329,1732250953166,-184.269,0.0005845,115]
[342983330,1732250953187,-21491.94603407,0.0005845,2]
[342983331,1732250953208,-150.0,0.00058459,9]
[342983332,1732250953230,-9999.59885522,0.0005846,2]
[342983333,1732250954128,-30992.72964478,0.0005846,2]
[342983334,1732250986312,833.96734279,0.00058,31]
[342983335,1732250986348,980.0,0.00058,31]
[342983336,1732250986371,825.24078331,0.00058,31]
[342983349,1732251031849,-285.16917903,0.0006,30]
[342983350,1732251031909,-10332.049264,0.0006,30]
[342983351,1732251031922,-604.32337629,0.0006,30]
[342983352,1732251031965,-613.77,0.0006,30]
[342983353,1732251032025,-1717.68818068,0.0006,30]
[342983354,1732251032035,-350.0,0.0006,120]
[342983355,1732251032045,-174.1,0.00060766,2]
[342983356,1732251032055,-2795.51041036,0.000611,90]
[342983357,1732251032067,-210.57711352,0.00062,120]
[342983358,1732251032077,-567.43748702,0.00062045,60]
[342983359,1732251032087,-6578.0,0.00062138,30]
[342983360,1732251032098,-5174.09155593,0.0006244,30]
[342983361,1732251032108,-161.58,0.00062442,30]
[342983362,1732251032117,-500.0,0.00062482,2]
[342983363,1732251032127,-250.0,0.00062686,120]
[342983364,1732251032137,-162.69,0.00062871,120]
[342983365,1732251032149,-1000.0,0.00062975,120]
[342983366,1732251032158,-174.1,0.00063029,2]
[342983367,1732251032169,-250.0,0.00063099,120]
[342983368,1732251032179,-250.0,0.00063102,120]
[342983369,1732251032189,-1852.42,0.00063201,2]
[342983370,1732251032203,-197.91,0.0006326,120]
[342983371,1732251032213,-150.4,0.00063511,2]
[342983372,1732251032223,-250.0,0.00064,120]
[342983373,1732251032233,-23900.0,0.00064595,2]
[342983374,1732251032243,-6398.8,0.000649,2]
[342983375,1732251032253,-340.0361094,0.00065,120]
[342983376,1732251032263,-174.1,0.00065293,2]
[342983377,1732251032273,-500.0,0.00065555,120]
[342983378,1732251032283,-10144.23834329,0.000659,15]
[342983379,1732251032293,-680.23553388,0.000659,28]
[342983380,1732251032303,-332.72320752,0.000659,15]
[342983381,1732251032314,-210.9189656,0.00065948,37]
[342983382,1732251032327,-423.75,0.00065988,10]
[342983383,1732251032338,-93076.0839814,0.00065997,120]
[342983384,1732251032349,-50000.0,0.00065998,120]
[342983385,1732251032359,-158507.16173472,0.00065998,120]
[342983386,1732251032370,-500.0,0.00066,120]
[342983387,1732251032381,-500.0,0.00066,120]
[342983388,1732251032390,-251548.58516624,0.00066,120]
[342983389,1732251032400,-3159.14,0.00066,120]
[342983390,1732251032410,-10000.0,0.00066,30]
[342983391,1732251032420,-226.04,0.00066148,120]
[342983392,1732251032430,-333.255,0.00066497,2]
[342983393,1732251032439,-318.45558526,0.00066497,2]
[342983394,1732251032450,-2500.0,0.00066499,120]
[342983395,1732251032459,-500.0,0.0006655,120]
[342983396,1732251032469,-500.0,0.0006655,120]
[342983397,1732251032478,-500.0,0.00066573,12]
[342983398,1732251032488,-150.99,0.00066585,120]
[342983399,1732251032497,-154.49802815,0.00066597,30]
[342983400,1732251032507,-254.86573668,0.00066599,120]
[342983401,1732251032517,-366.33192,0.00066599,120]
[342983402,1732251032526,-141851.59770211,0.000666,20]
[342983403,1732251032598,-4892.19332815,0.000666,20]
[342983404,1732251032611,-354089.0550275,0.000666,20]
[342983405,1732251032622,-33089.83418463,0.000666,20]
[342983406,1732251032634,-398.2,0.000666,20]
[342983407,1732251032645,-630.14702656,0.000666,20]
[342983408,1732251032657,-11273.19598325,0.000666,20]
[342983409,1732251032669,-1396.50221221,0.000666,20]
[342983410,1732251032681,-32209.50814295,0.000666,20]
[342983411,1732251032698,-38518.44071374,0.000666,20]
[342983412,1732251032709,-128116.58459094,0.000666,20]
[342983413,1732251032720,-77973.26749638,0.000666,20]
[342983416,1732251037878,-1264.43557993,0.000666,20]
[342983417,1732251037937,-1977.04,0.000666,20]
[342983418,1732251037949,-1405.0,0.000666,20]
[342983419,1732251037961,-2605.1,0.000666,20]
[342983420,1732251037972,-1878.96045,0.000666,20]
[342983421,1732251037984,-9856.25,0.000666,20]
[342983422,1732251037995,-1569.51649387,0.000666,20]
[342983423,1732251038055,-367555.48162992,0.000666,20]
[342983424,1732251038114,-2292.40880819,0.000666,20]
[342983425,1732251038130,-2716.40615873,0.000666,20]
[342983426,1732251038141,-1985.58384543,0.000666,20]
[342983427,1732251038230,-341.38082856,0.000666,20]
[342983428,1732251038242,-40613.92193799,0.000666,20]
[342983429,1732251038289,-2471.4383758,0.000666,20]
[342983430,1732251038304,-3962.55749776,0.000666,20]
[342983431,1732251038318,-3110.01716113,0.000666,20]
[342983432,1732251038334,-2335.4781336,0.000666,20]
[342983433,1732251038350,-2048.003565,0.000666,20]
[342983436,1732251038365,-3632.29598432,0.000666,20]
[342983438,1732251038379,-3158.92017496,0.000666,20]
[342983452,1732251040317,-1544.84999999,0.000666,20]
[342983453,1732251040330,-1168.25,0.000666,20]
[342983454,1732251040341,-16076.16614364,0.000666,20]
[342983455,1732251040352,-1081.32871071,0.000666,20]
[342983456,1732251040364,-354.63044984,0.000666,20]
[342983461,1732251042991,-312.5294,0.00065898,2]
[342983462,1732251043000,-10077.76942762,0.000666,20]
[342983463,1732251043210,-1128.7920254,0.000666,20]
[342983464,1732251043225,-4245.46299707,0.000666,20]
[342983465,1732251043237,-14961.03168934,0.000666,20]
[342983466,1732251043267,-206919.56306668,0.000666,20]
[342983467,1732251043279,-2734.80696688,0.000666,20]
[342983468,1732251043290,-5403.09415793,0.000666,20]
[342983469,1732251043302,-2255.72356431,0.000666,20]
[342983549,1732251045915,-5633.91404603,0.000666,20]
[342983550,1732251045973,-1482.37433566,0.000666,20]
[342983552,1732251053191,-15602.27606589,0.000666,20]
[342983553,1732251053202,-3403.59999999,0.000666,20]
[342983554,1732251053220,-3690.95504983,0.000666,20]
[342983555,1732251053231,-895.40164589,0.000666,20]
[342983556,1732251053246,-2962.0494452,0.000666,20]
[342983557,1732251053337,3241.75921669,0.000498,120]
[342983558,1732251053360,1385.35351644,0.000498,120]
[342983559,1732251053382,3662.94543605,0.000498,120]
[342983560,1732251053405,580.2757772,0.000498,120]
[342983563,1732251216992,-1061.93952403,0.00049799,30]
[342983564,1732251217019,-11055.4517792,0.000498,120]
[342983565,1732251217044,-150.0,0.0005478,2]
[342983566,1732251217073,-153.0,0.00059277,120]
[342983567,1732251217100,-153.0,0.00059277,120]
[342983568,1732251217127,-150.0,0.00063124,120]
[342983569,1732251217293,-174.0,0.00063599,30]
[342983570,1732251217323,-23900.0,0.00065583,2]
[342983571,1732251217350,-1000.0,0.00065753,120]
[342983572,1732251217380,-1000.0,0.00065753,120]
[342983573,1732251217406,-1000.0,0.00065753,120]
[342983574,1732251217433,-1000.0,0.00065753,120]
[342983575,1732251217464,-1000.0,0.00065753,120]
[342983576,1732251217491,-1000.0,0.00065753,120]
[342983577,1732251217520,-1000.0,0.00065753,120]
[342983578,1732251217547,-1000.0,0.00065753,120]
[342983579,1732251217572,-1000.0,0.00065753,120]
[342983580,1732251217600,-1000.0,0.00065753,120]
[342983581,1732251217627,-1000.0,0.00065753,120]
[342983582,1732251217656,-1000.0,0.00065753,120]
[342983583,1732251217684,-1000.0,0.00065753,120]
[342983584,1732251217710,-202.60869677,0.00065753,120]
[342983586,1732252033140,-158.07778278,0.00031,2]
[342983587,1732252037111,-91.92221722,0.00031,2]
[342983588,1732252037132,-68.17852678,0.0006,30]
[342983589,1732252053188,-130.58110586,0.0006,30]
[342983590,1732252053212,-460.01279333,0.0006,120]
[342983610,1732252232123,-150.0,0.00059999,9]
[342983611,1732252232133,-539.98720667,0.0006,120]
[342983612,1732252232142,-500.0,0.0006,120]
[342983613,1732252232151,-21810.30978794,0.0006,120]
[342983614,1732252232161,-500.0,0.0006,120]
[342983615,1732252232170,-500.0,0.0006,120]
[342983616,1732252232179,-500.0,0.0006,120]
[342983617,1732252232189,-500.0,0.0006,120]
[342983618,1732252232198,-500.0,0.0006,120]
[342983619,1732252232207,-500.0,0.0006,120]
[342983620,1732252232216,-500.0,0.0006,120]
[342983621,1732252232226,-500.0,0.0006,120]
[342983622,1732252232235,-500.0,0.0006,120]
[342983623,1732252232244,-500.0,0.0006,120]
[342983624,1732252232254,-500.0,0.0006,120]
[342983625,1732252232263,-500.0,0.0006,120]
[342983626,1732252232273,-500.0,0.0006,120]
[342983627,1732252232283,-500.0,0.0006,120]
[342983628,1732252232293,-500.0,0.0006,120]
[342983629,1732252232302,-500.0,0.0006,120]
[342983630,1732252232314,-500.0,0.0006,120]
[342983631,1732252232326,-990.0,0.00060184,60]
[342983632,1732252232342,-990.0,0.00060804,60]
[342983633,1732252232360,-990.0,0.00061425,60]
[342983634,1732252232370,-150.0,0.000615,60]
[342983635,1732252232379,-150.0,0.000615,60]
[342983636,1732252232390,-153.47,0.000615,60]
[342983637,1732252232399,-990.0,0.00062045,60]
[342983638,1732252232409,-475.92152686,0.00062045,60]
[342983639,1732252232419,-150.0,0.000621,60]
[342983640,1732252232428,-150.0,0.000621,60]
[342983641,1732252232438,-150.0,0.000621,60]
[342983642,1732252232448,-14477.72533221,0.0006244,30]
[342983643,1732252232458,-990.0,0.00062666,60]
[342983644,1732252232467,-1017.0,0.00063,120]
[342983645,1732252232477,-238.13,0.0006304,2]
[342983646,1732252232487,-990.0,0.00063286,60]
[342983647,1732252232496,-250.0,0.0006369,120]
[342983648,1732252232506,-180.83,0.0006373,120]
[342983649,1732252232516,-652.7,0.00063738,2]
[342983650,1732252232525,-250.0,0.00063858,120]
[342983651,1732252232536,-990.0,0.00063906,60]
[342983652,1732252232545,-23900.0,0.00063919,2]
[342983653,1732252232557,-162.7,0.00063979,120]
[342983654,1732252232567,-249.999999,0.00064,120]
[342983655,1732252232578,-1000.0,0.00064,120]
[342983656,1732252232588,-249.03,0.00064219,30]
[342983657,1732252232598,-250.0,0.00064261,120]
[342983658,1732252232607,-1000.0,0.00065,120]
[342983659,1732252232616,-500.0,0.00065279,2]
[342983660,1732252232626,-238.13,0.00065304,2]
[342983661,1732252232635,-2011.743482,0.000655,120]
[342983662,1732252232645,-44459.51265689,0.000655,120]
[342983663,1732252232729,-6170.58330271,0.000655,120]
[342983664,1732252232739,-3030.39,0.00065533,2]
[342983665,1732252232748,-1000.0,0.00065574,120]
[342983666,1732252232758,-1000.0,0.00065753,120]
[342983667,1732252232767,-1000.0,0.00065753,120]
[342983668,1732252232776,-1000.0,0.00065753,120]
[342983669,1732252232786,-1000.0,0.00065753,120]
[342983670,1732252232795,-1000.0,0.00065753,120]
[342983671,1732252232805,-1000.0,0.00065753,120]
[342983672,1732252232815,-1000.0,0.00065753,120]
[342983673,1732252232826,-1000.0,0.00065753,120]
[342983674,1732252232837,-1000.0,0.00065753,120]
[342983675,1732252232847,-170.56830212,0.00065753,120]
[342983676,1732252232857,-797.39130323,0.00065753,120]
[342983677,1732252232866,-1000.0,0.00065753,120]
[342983678,1732252232876,-1428.15530434,0.00065753,120]
[342983679,1732252232886,-611.4,0.0006579,30]
[342983680,1732252232895,-9614.4904,0.00065797,2]
[342983681,1732252232905,-9607.05788927,0.000658,15]
[342983682,1732252232915,-437.91148508,0.000658,15]
[342983683,1732252232925,-184.269,0.00065896,120]
[342983684,1732252232934,-39955.1808,0.00065897,2]
[342983685,1732252232944,-87359.4432,0.000659,2]
[342983686,1732252232953,-6430.2504,0.000659,2]
[342983687,1732252232963,-210.91896557,0.000659,37]
[342983688,1732252232972,-479.25688,0.0006593,120]
[342983689,1732252232981,-342.97467815,0.00065973,15]
[342983690,1732252232991,-58354.63496285,0.00066,120]
[342983691,1732252233002,-851.1270626,0.00066,120]
[342983695,1732252238146,-17.56419718,0.0006,120]
[342983696,1732252238168,-49.71418651,0.0006,120]
[342983697,1732252238191,-432.72161631,0.0006,120]
[342983698,1732252238205,-224.4,0.0006589,10]
[342983699,1732252238215,-173.86,0.0006599,30]
[342983700,1732252238225,-4891.98750163,0.00066,120]
[342983701,1732252238237,-3663.72982384,0.00066,120]
[342983702,1732252238250,-2471.4383758,0.00066,120]
[342983703,1732252238263,-3962.55749776,0.00066,120]
[342983704,1732252238276,-3110.01716113,0.00066,120]
[342983705,1732252238290,-2335.4781336,0.00066,120]
[342983706,1732252238305,-2048.003565,0.00066,120]
[342983707,1732252238322,-3632.29598432,0.00066,120]
[342983708,1732252238336,-3158.92017496,0.00066,120]
[342983709,1732252238352,-6343.79558506,0.00066,120]
[342983710,1732252238373,-10729.9312,0.00066,120]
[342983711,1732252238385,-3146.97427027,0.00066,120]
[342983712,1732252238397,-753.02022157,0.00066,120]
[342983713,1732252238434,-853.0,0.00066,120]
[342983714,1732252238446,-5840.42292612,0.00066,120]
[342983715,1732252238458,-3511.01877038,0.00066,120]
[342983716,1732252238469,-4106.56582189,0.00066,120]
[342983717,1732252238481,-2960.99188026,0.00066,120]
[342983718,1732252238492,-7238.98399965,0.00066,120]
[342983719,1732252238505,-3125.94448,0.00066,120]
[342983720,1732252238516,-1183.09863459,0.00066,120]
[342983726,1732252240056,-290.28711306,0.00066,120]
[342983727,1732252240068,-277.54,0.00066,120]
[342983728,1732252240177,-1692.30000002,0.00066,120]
[342983729,1732252240189,-13930.07728202,0.00066,120]
[342983730,1732252240236,-4460.31629213,0.00066,120]
[342983731,1732252240247,-3907.64969985,0.00066,120]
[342983732,1732252240296,-2281.40577573,0.00066,120]
[342983733,1732252240307,-428.122495,0.00066,120]
[342983734,1732252240320,-5864.6178237,0.00066,120]
[342983740,1732252243488,-2.54209491,0.0006572,30]
[342983741,1732252243503,-154.22990509,0.0006572,30]
[342983742,1732252243513,-170.41,0.00065901,2]
[342983743,1732252243522,-5871.42235822,0.00066,120]
[342983744,1732252243533,-17744.57430392,0.00066,120]
[342983745,1732252243544,-4262.19031648,0.00066,120]
[342983746,1732252243555,-4257.29845635,0.00066,120]
[342983748,1732252243566,-304.0316715,0.00066,120]
[342983750,1732252243579,-16770.9140283,0.00066,120]
[342983752,1732252243590,-51631.4988867,0.00066,120]
[342983754,1732252243601,-990.12682229,0.00066,120]
[342983757,1732252243613,-13270.10354145,0.00066,120]
[342983759,1732252243621,-214.36793274,0.00066329,60]
[342983761,1732252243630,-150.0,0.00066344,60]
[342983763,1732252243639,-150.0,0.00066364,60]
[342983764,1732252243648,-150.0,0.00066365,60]
[342983766,1732252243657,-150.0,0.00066369,60]
[342983768,1732252243667,-150.0,0.00066372,60]
[342983770,1732252243676,-150.0,0.00066373,60]
[342983772,1732252243685,-150.0,0.00066376,60]
[342983774,1732252243695,-150.0,0.0006638,60]
[342983776,1732252243704,-150.0,0.0006638,60]
[342983780,1732252243712,-150.0,0.00066381,60]
[342983782,1732252243722,-232.32084822,0.00066388,60]
[342983783,1732252243732,-150.0,0.00066395,60]
[342983784,1732252243741,-150.0,0.00066399,60]
[342983786,1732252243750,-150.0,0.00066399,60]
[342983788,1732252243759,-150.0,0.000664,60]
[342983789,1732252243768,-150.0,0.00066401,60]
[342983790,1732252243777,-150.0,0.00066401,60]
[342983791,1732252243787,-150.0,0.00066406,60]
[342983792,1732252243796,-150.0,0.00066411,60]
[342983793,1732252243806,-150.0,0.00066418,60]
[342983794,1732252243816,-150.0,0.0006643,60]
[342983795,1732252243827,-150.0,0.00066432,60]
[342983796,1732252243837,-150.0,0.00066438,60]
[342983797,1732252243848,-150.0,0.0006644,60]
[342983798,1732252243858,-150.0,0.00066446,60]
[342983799,1732252243867,-150.0,0.00066454,60]
[342983800,1732252243877,-150.0,0.00066459,60]
[342983801,1732252243887,-150.0,0.0006646,60]
[342983802,1732252243897,-150.0,0.00066472,60]
[342983803,1732252243906,-150.0,0.00066473,60]
[342983804,1732252243916,-150.0,0.00066476,60]
[342983805,1732252243926,-150.0,0.00066486,60]
[342983806,1732252243935,-150.0,0.00066493,60]
[342983807,1732252243944,-150.0,0.00066494,60]
[342983808,1732252243954,-151.75898535,0.00066498,60]